bitfinex/quotes_SOLUSD_20260217
["timestamp","ask_amount","ask_price","bid_price","bid_amount"]
[1771353753056,16.46,85.247,85.223,0.5]
[1771353753561,23.53024885,85.27,85.241,0.5]
[1771353753748,7.09024885,85.28,85.241,0.5]
[1771353753948,16.42,85.269,85.241,0.5]
[1771353754665,4.61729252,85.296,85.231,0.5]
[1771353754876,7.09024885,85.25,85.223,0.5]
[1771353755168,11.72864222,85.262,85.233,0.5]
[1771353755465,11.72780754,85.268,85.233,0.5]
[1771353755764,16.38,85.267,85.233,0.5]
[1771353756155,11.72780754,85.268,85.233,0.5]
[1771353756468,16.38,85.267,85.233,0.5]
[1771353757964,11.7275915,85.269,85.235,0.5]
[1771353758150,16.4,85.266,85.235,0.5]
[1771353759257,41.03405826,85.295,85.235,0.5]
[1771353759568,7.09024885,85.26,85.235,0.5]
[1771353759869,16.4,85.259,85.235,0.5]
[1771353760047,7.09024885,85.25,85.235,0.5]
[1771353760251,7.09024885,85.28,85.241,0.5]
[1771353760756,7.09024885,85.27,85.241,0.5]
[1771353761763,7.09024885,85.26,85.231,0.5]
[1771353761969,11.72896702,85.259,85.231,0.5]
[1771353762369,7.09024885,85.25,85.231,0.5]
[1771353762674,16.36,85.253,85.231,0.5]
[1771353764275,16.36,85.253,85.206,14.82]
[1771353764276,11.7275915,85.269,85.241,0.5]
[1771353764466,16.38,85.26,85.241,0.5]
[1771353764879,16.38,85.268,85.241,0.5]
[1771353765177,16.38,85.267,85.241,0.5]
[1771353766058,11.72800412,85.266,85.241,0.5]
[1771353766555,7.09024885,85.26,85.225,0.5]
[1771353766758,7.09024885,85.25,85.225,0.5]
[1771353767160,7.09024885,85.25,85.216,0.5]
[1771353767456,16.4,85.249,85.221,0.5]
[1771353768175,11.73048048,85.248,85.221,0.5]
[1771353768378,16.42,85.247,85.221,0.5]
[1771353768564,11.73048048,85.248,85.221,0.5]
[1771353768765,16.42,85.247,85.223,0.5]
[1771353771675,11.72924217,85.257,85.231,0.5]
[1771353771883,16.46,85.246,85.231,0.5]
[1771353772065,16.46,85.253,85.231,0.5]
[1771353772263,11.72924217,85.257,85.231,0.5]
[1771353773715,11.72800412,85.266,85.233,0.5]
[1771353774165,16.46,85.265,85.241,0.5]
[1771353777569,11.72827922,85.264,85.241,0.5]
[1771353777885,7.09024885,85.26,85.23,0.5]
[1771353778086,7.09024885,85.26,85.221,0.5]
[1771353778383,16.52,85.259,85.221,0.5]
[1771353779084,16.54,85.258,85.231,0.5]
[1771353779790,29.32069806,85.264,85.231,0.5]
[1771353779984,16.54,85.263,85.241,0.5]
[1771353780774,41.03790729,85.287,85.241,0.5]
[1771353780978,7.09024885,85.28,85.251,0.5]
[1771353781785,11.72539133,85.285,85.251,11.72998833]
[1771353781978,16.56,85.284,85.252,0.5]
[1771353782378,7.09024885,85.28,85.252,0.5]
[1771353782899,16.56,85.283,85.252,0.5]
[1771353783281,7.09024885,85.28,85.252,0.5]
[1771353784396,11.7262163,85.279,85.252,0.5]
[1771353784994,0.48483937,85.269,85.23,7.09024885]
[1771353785592,7.09024885,85.26,85.22,18.82458351]
[1771353785988,0.48483937,85.259,85.22,7.09024885]
[1771353786705,7.09024885,85.25,85.22,7.09024885]
[1771353786885,7.09024885,85.25,85.217,11.73465448]
[1771353787201,7.09024885,85.25,85.218,0.45422819]
[1771353787405,16.6,85.249,85.221,0.45422819]
[1771353787586,0.48483937,85.248,85.221,0.45422819]
[1771353787780,16.62,85.247,85.221,0.45422819]
[1771353788200,0.48483937,85.248,85.221,0.45422819]
[1771353788397,16.62,85.246,85.221,0.45422819]
[1771353788983,0.48483937,85.239,85.208,0.45422819]
[1771353789398,11.7308933,85.245,85.16,5.56086188]
[1771353789399,2.3830197,85.22,85.192,0.45422819]
[1771353789994,0.48483937,85.229,85.192,0.45422819]
[1771353790196,2.3830197,85.2,85.162,0.45422819]
[1771353790387,18.9830197,85.2,85.162,0.45422819]
[1771353790805,16.6,85.2,85.171,0.45422819]
[1771353791011,11.73722696,85.199,85.171,0.45422819]
[1771353791516,16.6,85.2,85.172,0.45422819]
[1771353791883,0.48483937,85.206,85.161,11.74246427]
[1771353792085,0.48483937,85.199,85.161,11.74246427]
[1771353792500,16.6,85.198,85.17,2.3830197]
[1771353792709,16.6,85.198,85.161,11.74246427]
[1771353793589,11.73750249,85.197,85.161,11.74246427]
[1771353793789,0.48483937,85.196,85.161,11.74246427]
[1771353793999,0.48483937,85.196,85.162,0.45422819]
[1771353794209,16.62,85.195,85.162,0.45422819]
[1771353794598,11.73543632,85.212,85.181,0.46938349]
[1771353794798,16.62,85.21,85.181,0.46938349]
[1771353795592,16.62,85.21,85.183,0.46938349]
[1771353796108,11.73584949,85.209,85.183,0.46938349]
[1771353798425,41.07547323,85.209,85.183,0.46938349]
[1771353798599,11.73584949,85.209,85.183,0.46938349]
[1771353799691,0.45695279,85.208,85.183,0.46938349]
[1771353800114,0.45695279,85.199,85.164,0.46938349]
[1771353800494,7.0982187,85.19,85.164,0.46938349]
[1771353800688,0.45695279,85.199,85.165,0.46938349]
[1771353801309,0.45695279,85.206,85.171,0.46938349]
[1771353802011,0.45695279,85.204,85.172,12.21033121]
[1771353802307,0.45695279,85.202,85.173,0.46938349]
[1771353803515,29.33708765,85.217,85.172,11.74094772]
[1771353803516,7.0982187,85.22,85.191,0.46938349]
[1771353803731,16.74,85.219,85.191,0.46938349]
[1771353804019,12.19080147,85.224,85.193,0.46938349]
[1771353804219,11.73282021,85.231,85.201,0.46938349]
[1771353804510,11.73205589,85.237,85.201,0.46938349]
[1771353804712,7.0982187,85.23,85.201,0.46938349]
[1771353805298,0.45695279,85.235,85.201,0.46938349]
[1771353806099,0.45695279,85.233,85.203,0.46938349]
[1771353806914,17.21695279,85.232,85.203,0.46938349]
[1771353807111,0.45695279,85.231,85.204,11.73653819]
[1771353807319,0.45695279,85.229,85.204,11.73653819]
[1771353807532,0.45695279,85.219,85.186,0.46938349]
[1771353808129,16.78,85.218,85.201,0.46938349]
[1771353808423,0.45695279,85.23,85.201,0.46938349]
[1771353808424,16.78,85.222,85.201,0.46938349]
[1771353808629,0.45695279,85.23,85.201,0.46938349]
[1771353808926,36.42725081,85.24,85.201,0.46938349]
[1771353808927,0.45695279,85.238,85.201,0.46938349]
[1771353809130,16.78,85.237,85.213,0.46938349]
[1771353809529,16.78,85.236,85.213,0.46938349]
[1771353810046,16.78,85.235,85.213,0.46938349]
[1771353810217,0.45695279,85.237,85.213,0.46938349]
[1771353810628,16.78,85.236,85.213,0.46938349]
[1771353810824,7.0982187,85.23,85.205,0.46938349]
[1771353811032,0.45695279,85.231,85.205,0.46938349]
[1771353811924,16.78,85.236,85.211,0.46938349]
[1771353812123,7.0982187,85.24,85.211,0.46938349]
[1771353812334,0.45695279,85.238,85.211,0.46938349]
[1771353813421,0.45695279,85.236,85.211,0.46938349]
[1771353814318,0.45695279,85.234,85.211,0.46938349]
[1771353815429,16.84,85.233,85.211,12.20489711]
[1771353816419,16.84,85.233,85.212,0.46938349]
[1771353816725,16.86,85.233,85.212,0.46938349]
[1771353818236,0.45695279,85.234,85.212,0.46938349]
[1771353818537,16.88,85.232,85.212,0.46938349]
[1771353819134,16.88,85.232,85.214,0.46938349]
[1771353819334,0.45695279,85.234,85.214,0.46938349]
[1771353819546,11.73206667,85.237,85.214,0.46938349]
[1771353819736,16.9,85.236,85.214,0.46938349]
[1771353819940,28.63213196,85.236,85.214,0.46938349]
[1771353820135,28.63213196,85.236,85.181,61.6]
[1771353820136,0.45695279,85.229,85.2,2.38334676]
[1771353820654,0.45695279,85.227,85.201,11.73695144]
[1771353820943,0.45695279,85.227,85.202,0.46938349]
[1771353821744,11.73321182,85.229,85.202,0.46938349]
[1771353821946,0.45695279,85.228,85.2,2.38334676]
[1771353822137,0.45695279,85.228,85.191,0.46938349]
[1771353822444,16.9,85.227,85.21,2.38334676]
[1771353822825,16.9,85.227,85.208,11.73598723]
[1771353823020,16.9,85.227,85.21,2.38334676]
[1771353823225,16.9,85.242,85.211,0.46938349]
[1771353823426,16.9,85.241,85.22,2.85273025]
[1771353823628,16.9,85.241,85.208,11.73598723]
[1771353823629,16.9,85.241,85.221,0.46938349]
[1771353825527,0.4540016,85.24,85.21,2.38334676]
[1771353825743,0.4540016,85.229,85.2,2.38334676]
[1771353826360,0.4540016,85.229,85.199,0.45473694]
[1771353826650,2.38334676,85.23,85.199,0.45473694]
[1771353826651,0.4540016,85.227,85.199,0.45473694]
[1771353827035,0.4540016,85.227,85.191,0.45473694]
[1771353827956,16.88,85.227,85.201,0.45473694]
[1771353829239,0.4540016,85.233,85.203,0.45473694]
[1771353829440,17.3540016,85.232,85.203,0.45473694]
[1771353830051,0.4540016,85.231,85.203,0.45473694]
[1771353830831,0.4540016,85.23,85.203,0.45473694]
[1771353831744,12.18706336,85.23,85.203,0.45473694]
[1771353832256,0.4540016,85.23,85.205,0.45473694]
[1771353833146,16.9,85.232,85.205,0.45473694]
[1771353833340,17.38469513,85.237,85.211,0.4760874]
[1771353833538,0.46469513,85.236,85.211,0.4760874]
[1771353833753,0.46469513,85.234,85.204,0.4760874]
[1771353836056,11.7325449,85.233,85.206,0.4760874]
[1771353836259,0.46469513,85.232,85.206,0.4760874]
[1771353836856,0.46469513,85.232,85.205,11.73640044]
[1771353837368,0.46469513,85.232,85.205,12.21248784]
[1771353838457,0.46469513,85.232,85.206,0.4760874]
[1771353838655,0.46469513,85.232,85.21,2.38334676]
[1771353838868,16.92,85.235,85.211,0.4760874]
[1771353839035,0.46469513,85.237,85.211,0.4760874]
[1771353839239,16.98,85.236,85.211,0.4760874]
[1771353839440,16.98,85.245,85.221,0.4760874]
[1771353840254,11.73025997,85.25,85.221,0.4760874]
[1771353840455,0.46469513,85.253,85.231,0.4760874]
[1771353840661,0.46469513,85.252,85.223,0.4760874]
[1771353841458,0.46469513,85.249,85.223,0.4760874]
[1771353841643,0.46469513,85.248,85.223,0.4760874]
[1771353843060,0.46469513,85.248,85.224,0.4760874]
[1771353843249,12.19520428,85.248,85.224,0.4760874]
[1771353843447,11.73050915,85.248,85.224,0.4760874]
[1771353843666,0.46469513,85.247,85.221,0.4760874]
[1771353844169,0.46469513,85.239,85.206,0.4760874]
[1771353844547,0.46469513,85.239,85.207,11.73612496]
[1771353844744,0.46469513,85.237,85.208,0.4760874]
[1771353845253,0.46469513,85.235,85.209,11.73584949]
[1771353845861,0.46469513,85.219,85.177,0.4760874]
[1771353846154,0.46469513,85.209,85.181,0.4760874]
[1771353846365,0.46469513,85.216,85.19,2.38334676]
[1771353846566,0.46469513,85.216,85.191,0.4760874]
[1771353846762,2.38334676,85.23,85.201,0.4760874]
[1771353846957,0.46469513,85.229,85.201,0.4760874]
[1771353847150,17.02,85.233,85.211,0.4760874]
[1771353847355,0.46469513,85.229,85.204,0.4760874]
[1771353849767,11.7332332,85.228,85.204,0.4760874]
[1771353850169,17.02,85.233,85.211,0.4760874]
[1771353850377,0.46469513,85.251,85.221,0.4760874]
[1771353851575,12.1949004,85.25,85.221,0.4760874]
[1771353851776,11.73020527,85.25,85.221,0.4760874]
[1771353852073,0.46469513,85.249,85.221,0.4760874]
[1771353852254,0.46469513,85.249,85.223,0.4760874]
[1771353852450,0.46469513,85.256,85.223,0.4760874]
[1771353854264,0.46469513,85.256,85.225,0.4760874]
[1771353854577,11.72869287,85.261,85.231,0.4572458]
[1771353854966,0.46101592,85.26,85.231,0.4572458]
[1771353855965,11.72896702,85.259,85.231,0.4572458]
[1771353856285,0.46101592,85.258,85.232,11.73268256]
[1771353856476,0.46101592,85.258,85.233,0.4572458]
[1771353857683,0.46101592,85.27,85.24,2.38196106]
[1771353857979,0.46101592,85.27,85.241,0.4572458]
[1771353858160,17.08,85.277,85.251,0.4572458]
[1771353859267,17.08,85.277,85.242,11.73130616]
[1771353859268,0.46101592,85.286,85.261,0.4572458]
[1771353859683,0.46101592,85.285,85.261,0.4572458]
[1771353860767,0.46101592,85.285,85.261,12.18584395]
[1771353861690,0.46101592,85.285,85.262,0.4572458]
[1771353862380,11.72442069,85.293,85.262,0.4572458]
[1771353862583,0.46101592,85.292,85.262,0.4572458]
[1771353862987,11.72456648,85.291,85.263,11.72841678]
[1771353863287,0.46101592,85.29,85.264,0.4572458]
[1771353863666,0.46101592,85.289,85.26,2.38196106]
[1771353863867,0.46101592,85.289,85.245,29.32694293]
[1771353863868,0.46101592,85.289,85.259,0.4572458]
[1771353864370,0.46101592,85.289,85.26,2.38196106]
[1771353864582,0.46101592,85.289,85.261,0.4572458]
[1771353864785,0.46101592,85.289,85.263,0.4572458]
[1771353865088,0.46101592,85.293,85.265,0.4572458]
[1771353865690,0.46101592,85.293,85.26,2.38196106]
[1771353865986,0.46101592,85.289,85.251,0.4572458]
[1771353866380,0.46101592,85.289,85.261,0.4572458]
[1771353866789,17.12,85.288,85.261,0.4572458]
[1771353866981,0.46101592,85.287,85.261,0.4572458]
[1771353867189,0.46101592,85.285,85.261,0.4572458]
[1771353867576,0.46101592,85.285,85.258,11.72905478]
[1771353867980,0.46101592,85.285,85.259,0.4572458]
[1771353868291,0.46101592,85.285,85.261,0.4572458]
[1771353869177,0.46101592,85.279,85.251,0.4572458]
[1771353869384,2.38196106,85.27,85.201,93.89471963]
[1771353869584,0.46101592,85.249,85.222,0.4572458]
[1771353870402,0.46101592,85.273,85.241,0.4572458]
[1771353870698,0.46101592,85.273,85.23,2.38196106]
[1771353870699,0.46101592,85.273,85.251,0.4572458]
[1771353871397,0.46101592,85.273,85.251,12.18722847]
[1771353871603,2.38196106,85.29,85.252,0.4572458]
[1771353871604,17.60101592,85.28,85.252,0.4572458]
[1771353871984,11.7262163,85.279,85.252,0.4572458]
[1771353874088,12.18723222,85.279,85.252,0.4572458]
[1771353875805,12.18723222,85.279,85.254,0.4572458]
[1771353876105,29.34599481,85.288,85.261,0.4572458]
[1771353876414,11.72525385,85.286,85.261,0.4572458]
[1771353876711,12.18626977,85.286,85.261,0.4572458]
[1771353879003,0.46101592,85.285,85.261,0.4572458]
[1771353879187,2.38196106,85.28,85.261,0.4572458]
[1771353879509,2.30196106,85.28,85.261,0.4572458]
[1771353882201,2.30196106,85.28,85.262,0.4572458]
[1771353882598,17.76101592,85.285,85.262,0.4572458]
[1771353882915,0.46101592,85.285,85.262,0.4572458]
[1771353883811,12.18654474,85.284,85.262,0.4572458]
[1771353885010,12.17762488,85.289,85.264,0.46874228]
[1771353885304,0.45268454,85.289,85.264,0.46874228]
[1771353886618,11.72448642,85.292,85.266,0.46874228]
[1771353886810,2.38196106,85.29,85.266,0.46874228]
[1771353887014,2.38196106,85.28,85.244,0.46874228]
[1771353887205,19.72196106,85.28,85.245,0.46874228]
[1771353887812,19.72196106,85.28,85.251,0.46874228]
[1771353887813,17.34,85.28,85.251,0.46874228]
[1771353888002,2.38196106,85.29,85.251,0.46874228]
[1771353888202,17.34,85.288,85.251,0.46874228]
[1771353888611,11.72511637,85.287,85.252,11.72993008]
[1771353888820,11.72511637,85.287,85.253,0.46874228]
[1771353889200,2.38196106,85.28,85.253,0.46874228]
[1771353890019,41.03790729,85.287,85.222,61.6]
[1771353890020,0.45268454,85.259,85.222,0.46874228]
[1771353890320,17.34,85.259,85.222,0.46874228]
[1771353891116,17.34,85.259,85.224,0.46874228]
[1771353893115,0.45244956,85.249,85.226,0.46046924]
[1771353893529,11.7291046,85.258,85.219,11.73436987]
[1771353893530,2.38196106,85.24,85.219,11.73436987]
[1771353893709,2.38196106,85.24,85.22,0.46046924]
[1771353894020,0.45244956,85.229,85.195,11.73777803]
[1771353894201,0.45244956,85.239,85.2,2.38196106]
[1771353895101,12.18430624,85.238,85.201,11.73695144]
[1771353895302,2.38196106,85.23,85.201,11.73695144]
[1771353895501,0.45244956,85.229,85.201,11.73695144]
[1771353895921,2.38196106,85.22,85.202,0.46046924]
[1771353896117,2.83441062,85.22,85.197,0.46046924]
[1771353896510,0.45244956,85.219,85.197,0.46046924]
[1771353897223,0.45244956,85.219,85.198,11.73736472]
[1771353897602,2.83441062,85.23,85.199,0.46046924]
[1771353899503,11.73309554,85.229,85.201,0.46046924]
[1771353899906,17.28,85.235,85.201,0.46046924]
[1771353900323,17.28,85.235,85.2,43.46177326]
[1771353900324,2.38196106,85.25,85.211,0.46046924]
[1771353900529,0.45244956,85.257,85.221,0.46046924]
[1771353900932,2.38196106,85.28,85.241,0.46046924]
[1771353901104,2.38196106,85.28,85.206,4.61729252]
[1771353901105,17.28,85.284,85.251,0.46046924]
[1771353901315,11.72484142,85.289,85.251,0.46046924]
[1771353901316,0.45244956,85.283,85.251,0.46046924]
[1771353902031,0.45244956,85.283,85.253,0.46046924]
[1771353902331,0.45244956,85.259,85.221,0.46046924]
[1771353902634,2.38196106,85.24,85.204,0.46046924]
[1771353902835,2.38196106,85.23,85.207,0.46046924]
[1771353903021,2.38196106,85.23,85.206,11.73616997]
[1771353903022,2.38196106,85.24,85.211,0.46046924]
[1771353903222,0.45244956,85.251,85.221,0.46046924]
[1771353903442,0.45244956,85.258,85.221,0.46046924]
[1771353903731,17.69244956,85.265,85.231,0.46046924]
[1771353903941,2.38196106,85.27,85.241,0.46046924]
[1771353904117,2.38196106,85.28,85.251,0.46046924]
[1771353904532,0.45244956,85.282,85.251,0.46046924]
[1771353905235,29.30793671,85.302,85.242,41.05957156]
[1771353905236,0.45244956,85.297,85.261,0.46046924]
[1771353905540,2.38196106,85.28,85.261,0.46046924]
[1771353905838,0.45244956,85.289,85.261,0.46046924]
[1771353906238,11.72497889,85.288,85.261,0.46046924]
[1771353906433,0.45244956,85.289,85.263,0.46046924]
[1771353906636,0.45244956,85.288,85.263,0.46046924]
[1771353907538,7.08563664,85.29,85.263,0.46046924]
[1771353907738,18.81046904,85.29,85.263,0.46046924]
[1771353908130,11.7248324,85.29,85.263,0.46046924]
[1771353908325,18.81046904,85.29,85.265,0.46046924]
[1771353908544,0.45244956,85.279,85.242,0.46046924]
[1771353908724,0.45244956,85.269,85.235,0.46046924]
[1771353908928,7.08563664,85.28,85.241,0.46046924]
[1771353909531,7.08563664,85.28,85.251,0.46046924]
[1771353910142,0.45244956,85.279,85.253,0.46046924]
[1771353910659,18.81178773,85.28,85.226,0.46046924]
[1771353910660,0.45244956,85.259,85.226,0.46046924]
[1771353910831,7.08563664,85.25,85.226,0.46046924]
[1771353911033,0.45244956,85.249,85.226,0.46046924]
[1771353912350,12.18293004,85.248,85.226,0.46046924]
[1771353912555,0.45244956,85.239,85.205,0.46046924]
[1771353912854,7.08563664,85.23,85.205,0.46046924]
[1771353913059,0.45244956,85.238,85.205,0.46046924]
[1771353913231,7.08563664,85.24,85.205,0.46046924]
[1771353913427,7.08563664,85.25,85.211,0.46046924]
[1771353913632,11.73034287,85.249,85.211,0.46046924]
[1771353914046,0.45244956,85.254,85.212,11.73543632]
[1771353914229,0.45244956,85.249,85.213,0.46046924]
[1771353914649,7.08563664,85.24,85.213,0.46046924]
[1771353914839,7.08563664,85.23,85.209,0.48495634]
[1771353915862,7.08563664,85.23,85.19,7.08563664]
[1771353915863,0.46621007,85.219,85.192,0.48495634]
[1771353916040,7.08563664,85.23,85.192,0.48495634]
[1771353916368,7.08563664,85.23,85.194,0.48495634]
[1771353916733,18.81867893,85.23,85.194,0.48495634]
[1771353917334,0.46621007,85.219,85.193,11.73805359]
[1771353917635,0.46621007,85.219,85.167,4.61729252]
[1771353917636,0.46621007,85.219,85.189,0.48495634]
[1771353917932,7.08871283,85.27,85.214,0.48495634]
[1771353918233,7.08871283,85.27,85.213,4.61729252]
[1771353918234,0.46621007,85.293,85.253,0.48495634]
[1771353918434,7.08871283,85.29,85.253,0.48495634]
[1771353918645,0.46621007,85.293,85.261,0.48495634]
[1771353919038,0.46621007,85.291,85.261,0.48495634]
[1771353919630,4.61729252,85.334,85.252,41.0547553]
[1771353919631,0.46621007,85.279,85.252,11.72993008]
[1771353919854,0.46621007,85.279,85.244,11.73103092]
[1771353920157,0.46621007,85.279,85.251,11.73006768]
[1771353920544,0.46621007,85.279,85.251,12.21502402]
[1771353921864,11.7263538,85.278,85.251,0.48495634]
[1771353922459,11.7263538,85.278,85.251,12.21502402]
[1771353922766,7.08871283,85.27,85.244,11.73103092]
[1771353922975,0.46621007,85.277,85.245,0.48495634]
[1771353923763,0.46621007,85.259,85.218,0.48495634]
[1771353923952,7.08871283,85.25,85.221,0.48495634]
[1771353924155,7.5549229,85.23,85.2,7.08871283]
[1771353924366,7.5549229,85.23,85.16,12.96014083]
[1771353924367,0.46621007,85.229,85.197,0.48495634]
[1771353924544,0.46621007,85.247,85.211,0.48495634]
[1771353926254,0.46621007,85.255,85.221,0.48495634]
[1771353926458,7.08871283,85.25,85.222,11.73405928]
[1771353926764,7.08871283,85.25,85.223,0.48495634]
[1771353928144,0.46621007,85.259,85.223,0.48495634]
[1771353928545,0.46621007,85.259,85.225,0.48495634]
[1771353928761,0.46621007,85.257,85.225,0.48495634]
[1771353928968,0.46621007,85.249,85.213,0.48495634]
[1771353929168,0.46621007,85.249,85.217,11.73470796]
[1771353929473,7.08871283,85.24,85.217,11.73470796]
[1771353929851,0.46621007,85.241,85.217,11.73470796]
[1771353930059,7.5549229,85.25,85.218,0.48495634]
[1771353930263,0.46621007,85.25,85.221,0.48495634]
[1771353930467,0.46621007,85.25,85.222,11.73405928]
[1771353930468,6.62824359,85.25,85.222,11.73405928]
[1771353930648,0.46621007,85.268,85.231,0.48495634]
[1771353931969,7.08871283,85.27,85.231,0.48495634]
[1771353932170,0.46621007,85.274,85.241,0.48495634]
[1771353932556,11.72625151,85.279,85.243,0.48495634]
[1771353933066,7.08871283,85.27,85.243,0.48495634]
[1771353933269,0.46621007,85.278,85.243,0.48495634]
[1771353935168,0.46621007,85.278,85.245,0.48495634]
[1771353935375,0.46621007,85.278,85.251,0.48495634]
[1771353936272,0.46621007,85.278,85.252,62.08495634]
[1771353936471,0.46621007,85.278,85.253,0.48495634]
[1771353936974,0.46621007,85.278,85.254,12.21461125]
[1771353938673,0.46621007,85.278,85.244,29.3275773]
[1771353938674,0.46621007,85.278,85.255,0.48495634]
[1771353940159,0.46621007,85.278,85.248,0.48495634]
[1771353940368,0.46621007,85.278,85.145,25.49225269]
[1771353940369,0.46621007,85.269,85.24,7.57366917]
[1771353940563,0.46621007,85.278,85.25,7.08871283]
[1771353940874,0.46621007,85.289,85.251,0.48495634]
[1771353941175,7.08871283,85.28,85.251,0.48495634]
[1771353941378,0.46621007,85.279,85.251,0.48495634]
[1771353941757,12.19105149,85.289,85.253,0.48495634]
[1771353941979,0.46621007,85.288,85.253,0.48495634]
[1771353942484,0.46621007,85.259,85.217,12.2197041]
[1771353942783,7.08871283,85.25,85.221,0.48495634]
[1771353943160,7.5549229,85.25,85.221,0.48495634]
[1771353943361,0.46621007,85.249,85.221,0.48495634]
[1771353943773,0.46621007,85.249,85.223,0.48495634]
[1771353943969,7.08871283,85.24,85.215,0.48495634]
[1771353944171,0.46621007,85.252,85.212,0.48495634]
[1771353944372,7.08871283,85.25,85.212,0.48495634]
[1771353944882,7.55926841,85.25,85.212,0.48495634]
[1771353945179,0.47055558,85.249,85.212,0.48495634]
[1771353945396,0.47055558,85.229,85.207,11.73612496]
[1771353945787,0.47055558,85.229,85.203,11.73667593]
[1771353945969,7.08871283,85.22,85.202,0.4621814]
[1771353946171,0.47055558,85.229,85.203,0.4621814]
[1771353946980,0.47055558,85.229,85.186,14.78]
[1771353946981,0.47055558,85.219,85.192,11.73819137]
[1771353947176,0.47055558,85.219,85.182,29.34882032]
[1771353947392,0.47055558,85.209,85.183,12.20161297]
[1771353947692,0.47055558,85.199,85.161,0.4621814]
[1771353947985,0.47055558,85.197,85.164,0.4621814]
[1771353951188,7.08871283,85.21,85.171,0.4621814]
[1771353951401,7.08871283,85.21,85.181,0.4621814]
[1771353951769,0.47055558,85.239,85.201,0.4621814]
[1771353952387,11.73034287,85.249,85.211,0.4621814]
[1771353952388,0.47055558,85.249,85.211,0.4621814]
[1771353952792,0.49394618,85.259,85.221,0.45646581]
[1771353952993,0.49394618,85.256,85.223,0.45646581]
[1771353953291,7.08871283,85.25,85.223,0.45646581]
[1771353953866,0.49394618,85.249,85.223,0.45646581]
[1771353954068,7.08871283,85.24,85.207,0.45646581]
[1771353954277,7.08871283,85.24,85.206,11.7362627]
[1771353954278,7.08871283,85.24,85.211,0.45646581]
[1771353954478,0.49394618,85.249,85.211,0.45646581]
[1771353954777,7.08871283,85.25,85.221,0.45646581]
[1771353954972,7.08871283,85.24,85.211,0.45646581]
[1771353955195,0.49394618,85.249,85.211,0.45646581]
[1771353957492,0.49394618,85.249,85.22,7.08871283]
[1771353957791,7.08871283,85.28,85.241,0.45646581]
[1771353958572,7.08871283,85.27,85.24,7.08871283]
[1771353959481,7.08871283,85.27,85.235,0.45646581]
[1771353960196,7.08871283,85.26,85.235,0.45646581]
[1771353960394,105.7157231,85.517,85.251,0.45646581]
[1771353960395,0.46806671,85.287,85.251,0.45646581]
[1771353960574,7.08871283,85.29,85.251,0.45646581]
[1771353960773,0.46806671,85.269,85.235,0.45646581]
[1771353961194,0.46806671,85.269,85.24,7.08871283]
[1771353961418,0.46806671,85.269,85.241,0.45646581]
[1771353961702,11.72772904,85.268,85.241,0.45646581]
[1771353961907,0.46806671,85.278,85.243,0.45646581]
[1771353962205,7.08871283,85.28,85.251,0.45646581]
[1771353962377,7.08871283,85.29,85.251,0.45646581]
[1771353962773,0.46806671,85.295,85.261,0.45646581]
[1771353962976,7.08871283,85.29,85.261,0.45646581]
[1771353963208,0.46806671,85.289,85.261,0.45646581]
[1771353963708,0.46806671,85.289,85.262,12.18502014]
[1771353963884,7.08871283,85.29,85.263,0.45646581]
[1771353964282,0.46806671,85.298,85.271,0.45646581]
[1771353965304,11.72356156,85.299,85.271,0.45646581]
[1771353965489,11.72356156,85.299,85.273,0.45646581]
[1771353965691,7.18871283,85.31,85.273,0.45646581]
[1771353965903,7.18871283,85.31,85.281,0.45646581]
[1771353966420,0.1,85.31,85.281,0.45646581]
[1771353966779,0.1,85.32,85.291,0.45646581]
[1771353966986,0.1,85.32,85.281,0.45646581]
[1771353966987,0.46806671,85.319,85.281,0.45646581]
[1771353967681,0.46806671,85.319,85.283,0.45646581]
[1771353967682,12.18878542,85.319,85.283,0.45646581]
[1771353967881,0.46806671,85.318,85.283,0.45646581]
[1771353968479,11.72071871,85.319,85.283,0.45646581]
[1771353969198,12.18878542,85.319,85.283,0.45646581]
[1771353969703,11.72071871,85.319,85.291,0.45646581]
[1771353969891,0.1,85.32,85.291,0.45646581]
[1771353970237,7.08871283,85.31,85.284,11.72552882]
[1771353970528,0.46806671,85.318,85.284,12.18199463]
[1771353970705,7.08871283,85.31,85.285,0.45646581]
[1771353971011,7.18871283,85.32,85.291,0.45646581]
[1771353972012,7.18871283,85.32,85.293,0.45646581]
[1771353972225,0.1,85.32,85.293,0.45646581]
[1771353973225,7.18871283,85.32,85.293,0.45646581]
[1771353973425,7.18871283,85.32,85.292,11.72442902]
[1771353973426,7.08871283,85.31,85.291,14.92]
[1771353973725,7.08871283,85.31,85.286,12.18163915]
[1771353974222,18.81071982,85.31,85.286,0.45646581]
[1771353974425,0.46806671,85.299,85.274,15.0]
[1771353974625,0.46806671,85.299,85.269,0.49889294]